Cogmind - Beta 10.2 @@@ ROGUE MODE // 2021.06.16 @ 17:35:13 Player: the cat Result: Destroyed by G-34 Mercenary with Small Laser Performance ------------- Evolutions (0) 0 Regions Visited (1) 200 Robots Destroyed (21) 105 Value Destroyed (564) 564 Prototype IDs (0) 0 Alien Tech Used (0) 0 Bonus (0) 0 TOTAL SCORE: 869 Bonus ------- None Cogmind --------- Core Integrity 0/250 Matter 290/300 Energy 100/100 System Corruption 0% Temperature Cool (6) Movement Rolling (110) Ox3 Location -10/Materials Parts ------- > --- POWER (1) -------- (None) > --- PROPULSION (2) --- Light Treads Wheel > --- UTILITY (2) ------ Large Storage Unit Large Storage Unit > --- WEAPON (2) ------- (None) > --- INVENTORY (16) --- Medium Storage Unit Large Matter Pod (150) Hacking Suite Peak State ------------ > --- POWER ------------ Light Ion Engine > --- PROPULSION ------- Light Treads Wheel > --- UTILITY ---------- Small Storage Unit Medium Storage Unit > --- WEAPON ----------- EM Pulse Gun Light Assault Rifle > --- INVENTORY -------- Light Treads Light Treads Wheel Small Laser [Rating: 7] Favorites ----------- Power Light Ion Engine Engine Light Ion Engine Propulsion Light Treads Treads Light Treads Wheel Wheel Utility Large Storage Unit Storage Large Storage Unit Weapon Light Assault Rifle Energy Gun EM Pulse Gun Ballistic Gun Light Assault Rifle Build | -11 -10 ------- Run | Scr Mat Slots Evolved . | . . Power . | . . Propulsion . | . . Utility . | . . Weapon . | . . Parts Attached 15 | 6 9 Power 2 | 1 1 Engine 2 | 1 1 Core . | . . Reactor . | . . Propulsion 5 | 2 3 Treads 3 | 1 2 Leg . | . . Wheel 2 | 1 1 Hover . | . . Flight . | . . Utility 4 | 1 3 Device . | . . Storage 4 | 1 3 Processor . | . . Hackware . | . . Protection . | . . Artifact . | . . Weapon 4 | 2 2 Energy Gun 3 | 1 2 Energy Cannon . | . . Ballistic Gun 1 | 1 . Ballistic Cannon . | . . Launcher . | . . Special Weapon . | . . Impact Weapon . | . . Slashing Weapon . | . . Piercing Weapon . | . . Special Melee Weapon . | . . Unidentified Prototypes . | . . Parts Lost 9 | . 9 Power 2 | . 2 Propulsion 3 | . 3 Utility . | . . Weapon 4 | . 4 Highest Loss Streak 4 | . 4 Average Slot Usage (%) 73 | . 73 Engine 6 | . 6 Treads 18 | . 18 Wheel 1 | . 1 Storage 26 | . 26 Energy Gun 12 | . 12 Ballistic Gun 6 | . 6 Naked Turns . | . . Heaviest Build 33 | 10 33 Greatest Support 40 | 10 40 Greatest Overweight (x) 3 | . 3 Average Overweight (x) . | . . Largest Inventory Capacity 16 | 6 16 Average Capacity 12 | 5 12 Most Carried 5 | 4 5 Average Carried 3 | 1 3 Final Capacity 16 | 6 16 Final Carried 4 | 4 3 Class Distribution -------------------- 100% | Mutant Dominant Class ---------------- Mutant | -10/Materials Resources | -11 -10 ----------- Run | Scr Mat Matter Collected 488 | 184 304 Remotely . | . . Salvage Created 693 | . 693 Parts 40 | . 40 Haulers Intercepted 1 | . 1 Recyclers Shooed . | . . Parts Field Recycled . | . . Retrieved Matter . | . . Parts Self-Destructed . | . . Prevented . | . . Kills | -11 -10 ------- Run | Scr Mat Combat Hostiles Destroyed 16 | . 16 Melee 2 | . 2 Guns 11 | . 11 AOE 3 | . 3 Classes Destroyed 5 | . 5 Hauler 1 | . 1 Operator 3 | . 3 Watcher 1 | . 1 Swarmer 3 | . 3 Grunt 13 | . 13 Best Kill Streak 5 | . 5 Combat Bots Only 4 | . 4 Max Kills in Single Turn 2 | . 2 Gunslinging 1 | . 1 Exploded 2 | . 2 Melee 1 | . 1 Uniques/NPCs Destroyed . | . . Combat | -11 -10 -------- Run | Scr Mat Damage Taken 1103 | . 1103 Core 258 | . 258 Absorbed by Shields . | . . Core Remaining (%) 100 | 100 . Volleys Fired 89 | . 89 Largest 2 | . 2 Hottest 60 | . 60 Shots Fired 125 | . 125 Gun 125 | . 125 Cannon . | . . Launcher . | . . Special . | . . Kinetic 36 | . 36 Thermal 59 | . 59 Explosive . | . . Electromagnetic 30 | . 30 Robot Hit Streak 10 | . 10 Robot Miss Streak 4 | . 4 Penetration Max . | . . Secondary Targets 4 | . 4 Max Gunslinging Chain 1 | . 1 Shots Hit Robots 75 | . 75 Core Hits 42 | . 42 Critical Hits . | . . Critical Kills . | . . Critical Parts Destroyed . | . . Melee Attacks . | . . Impact . | . . Slashing . | . . Piercing . | . . Sneak Attacks . | . . Combat Hostiles . | . . Follow-up Attacks . | . . Damage Inflicted 1086 | . 1086 Guns 850 | . 850 Cannons . | . . Explosions 195 | . 195 Melee . | . . Ramming 41 | . 41 Kinetic 172 | . 172 Thermal 617 | . 617 Explosive . | . . Electromagnetic 256 | . 256 Impact . | . . Slashing . | . . Piercing . | . . Highest Corruption . | . . Average Corruption . | . . Corruption Purged . | . . Overload Shots . | . . Overflow Damage 10 | . 10 Projectiles . | . . Explosions 10 | . 10 Melee . | . . Knockbacks . | . . Impact . | . . Kinetic . | . . Secondary . | . . Self-Inflicted Damage 68 | . 68 Shots 2 | . 2 Rammed 13 | . 13 Targets Rammed 14 | . 14 Kicked . | . . Crushed 1 | . 1 Highest Temperature 142 | . 142 Average Temperature 48 | . 48 Received Heat Transfer 537 | . 537 Siege Activations . | . . Robots Corrupted . | . . Combat Hostiles . | . . Parts Fried . | . . Impact Corruptions . | . . Robots Melted . | . . Combat Hostiles . | . . Parts Melted 2 | . 2 Heat Transferred 1250 | . 1250 Parts Sabotaged . | . . Parts Stolen . | . . Parts Stripped . | . . Power Chain Reactions 3 | . 3 Missiles Intercepted . | . . Alert | -11 -10 ------- Run | Scr Mat Peak Influence 279 | . 279 Initial . | . . Average 108 | . 112 Maximum Alert Level 1 | . 1 Low Security (%) 89 | 100 89 Level 1 10 | . 10 Level 2 . | . . Level 3 . | . . Level 4 . | . . Level 5 . | . . High Security . | . . Max Security . | . . Squads Dispatched 5 | . 5 Investigation 1 | . 1 Extermination . | . . Reinforcement 4 | . 4 Assault . | . . Garrison . | . . Intercept . | . . Construction Impeded . | . . Haulers Reinforced . | . . Stealth | -11 -10 --------- Run | Scr Mat Distress Signals 1 | . 1 Communications Jammed . | . . Distress Signals . | . . Times Spotted 35 | . 35 Peak Tracking Total 5 | . 5 Tactical Retreats . | . . Traps | -11 -10 ------- Run | Scr Mat Traps Triggered 1 | . 1 Indirectly . | . . Trap Hack Attempts . | . . Triggered . | . . Disarmed . | . . Reprogrammed . | . . Reused . | . . Traps Extracted . | . . Installed . | . . Triggered . | . . Machines | -11 -10 ---------- Run | Scr Mat Machines Disabled . | . . Max in Single Turn . | . . Machines Sabotaged . | . . Garrisons Compromised . | . . Overloaded Fab Kills . | . . Fab Network Shutdowns . | . . Hacking | -11 -10 --------- Run | Scr Mat Machines Accessed 4 | . 4 Terminals 2 | . 2 Fabricators . | . . Repair Stations . | . . Recycling Units 2 | . 2 Scanalyzers . | . . Garrison Access . | . . Total Hacks 14 | . 14 Successful 6 | . 6 Failed 8 | . 8 Catastrophic 1 | . 1 Database Lockouts . | . . Manual 8 | . 8 Terminals 8 | . 8 Fabricators . | . . Repair Stations . | . . Recycling Units 6 | . 6 Scanalyzers . | . . Garrison Access . | . . Terminal Hacks 2 | . 2 Locate Traps 1 | . 1 Registered Components 1 | . 1 Fabricator Hacks . | . . Repair Station Hacks . | . . Recycling Unit Hacks 1 | . 1 Report Inventory 1 | . 1 Scanalyzer . | . . Garrison Access Hacks . | . . Unauthorized Hacks 3 | . 3 Terminals 2 | . 2 Botnet 1 | . 1 Operators 1 | . 1 Fabricators . | . . Repair Stations . | . . Recycling Units 1 | . 1 Recyclers 1 | . 1 Scanalyzers . | . . Garrison Access . | . . Data Cores Recovered . | . . Used . | . . Hacking Detections 3 | . 3 Full Trace Events . | . . Feedback Events . | . . Feedback Blocked . | . . Robot Schematics Acquired . | . . Robots Built . | . . Matter . | . . Time . | . . Total Robot Build Rating . | . . Part Schematics Acquired . | . . Parts Built . | . . Matter . | . . Time . | . . Total Part Build Rating . | . . Parts Repaired . | . . Time . | . . Parts Recycled . | . . Recycled Matter . | . . Retrieved Matter . | . . Retrieved Components . | . . Parts Scanalyzed . | . . Part Schematics Acquired . | . . Parts Damaged . | . . Bothacking | -11 -10 ------------ Run | Scr Mat Used RIF Installer . | . . Robots Hacked . | . . Non-combat . | . . Combat . | . . Robot Hacks Applied . | . . Relay Couplers Released . | . . Robots Rewired . | . . Allies Hacked . | . . Hacks Repelled . | . . Allies | -11 -10 -------- Run | Scr Mat Total Allies . | . . Largest Group . | . . Highest-Rated Group . | . . Highest-Rated Ally . | . . Total Orders . | . . Ally Attacks . | . . Total Damage . | . . Kills . | . . Allies Corrupted . | . . Allies Melted . | . . Intel | -11 -10 ------- Run | Scr Mat Robot Analysis Total . | . . Derelict Logs Recovered . | . . Drone Launches . | . . Drone Recoveries . | . . Exploration | -11 -10 ------------- Run | Scr Mat Turns Passed 1305 | 52 1253 Spaces Moved 664 | 49 615 Core 3 | 3 . Treads 522 | . 522 Legs . | . . Wheels 139 | 46 93 Hover . | . . Flight . | . . Fastest Speed 50 | 50 80 Average Speed 146 | 78 151 Slowest Speed 180 | 80 180 Overloaded Moves . | . . Propulsion Burnouts . | . . Robots Hopped . | . . Cave-ins Triggered . | . . Exploration Rate (%) 45 | 3 87 Regions Visited 1 Branch Regions . Pre-discovered Areas . | . . Known Exits Taken . | . . Unknown Exits Taken 1 | 1 . Scrap Searched . | . . Spaces Dug . | . . Terrain Destroyed 7 | . 7 Melee . | . . Projectile . | . . AOE 7 | . 7 Terrain Rammed . | . . Walls Destroyed . | . . Machines Disabled . | . . Actions | -11 -10 --------- Run | Scr Mat Total 867 | 59 808 Wait 76 | 1 75 Move 663 | 48 615 Hop . | . . Pick Up 8 | 4 4 Fast Attach 8 | 6 2 Attach 5 | . 5 Detach . | . . Swap 2 | . 2 Drop 2 | . 2 Fire 89 | . 89 Melee . | . . Ram . | . . Kick . | . . Crush 14 | . 14 Escape Stasis . | . . Rewire . | . . Trap . | . . Miscellaneous . | . . Route ------- -11/Scrapyard -10/Materials (discovered 4 exits: [*Mat x2] / [*Min x2]) History --------- Turn | Location | Event 2 | -11/Scrapyard | Met Revision 17 22 | -11/Scrapyard | Discovered new exit (range 14) 53 | -11/Scrapyard | Entered Materials 207 | -10/Materials | Discovered new exit (range 15) 315 | -10/Materials | Build established: Mutant 480 | -10/Materials | Discovered new exit (range 5) 589 | -10/Materials | Discovered new exit (range 8) 636 | -10/Materials | Core integrity fell below 50% 697 | -10/Materials | Lost 4 parts (1p1n2w) 907 | -10/Materials | Core integrity fell below 20% 1272 | -10/Materials | Discovered new exit (range 14) 1306 | -10/Materials | Destroyed by G-34 Mercenary with Small Laser Last Messages --------------- 00995_ Acquired Sml. Laser. 01030_ Acquired 50 matter. 01035_ U-05 Engineer lays Concrete. 01062_ Acquired 50 matter. 01097_ Acquired 20 matter. 01106_ Acquired 11 matter. 01170_ O-16 Technician destroyed. 01171_ K-01 Serf collects debris. 01172_ Acquired 5 matter. 01174_ Acquired 4 matter. 01176_ K-01 Serf collects debris. 01179_ Acquired 14 matter. 01180_ K-01 Serf collects debris. 01205_ O-16 Technician: "IFF HANDSHAKE FAILED. SECURING TERMINAL." 01217_ ALERT: Hostiles spotted, dispatching reinforcements to Terminal M005. 01264_ Sml. Laser destroyed. 01268_ U-05 Engineer lays Concrete. 01272_ EXIT=FOUND 01294_ Lgt. Treads destroyed. Map ----- +----------------------------------------------------+ | | | | | | | | | | | | | | | | | | | ??????????????????????????????????????????? | | ??????????????????????????????????????????? | | ??????????????????????????????????????????? | | ??????????????????????????????????????????? | | ??????????????????????????????????????????? | | ??????????????????????????????????????????? | | ??????????????????????????#####?#####?????? | | ?????????????????????????? ###"""##????? | | ??????#####??????????????? ##"!!!"##???? | | ??????# ########???# """ #"" ""#???? | | ??????# < # #???# """ # #???? | | ??????# # #?### # < #???? | | ####### + #?? /w""" |! # #???? | | # ]! #???# """ !! # #???? | | # !! #???# """ !! ?# #????? | | # #????? ????# ######? | | ######################@####### # # | | # T # + "" # | | # # # "" # | | + """# ^ # T" # | | # """# a o### g#####? "" # | | # """# #?# #????? "" # | | # # #?# #?????? # | | # # ####### #?# #??????#### | | ########## ???????# #?# #?????????? | | # #???#???????? ??# #?????????? | | + #???????????#! k??# #?????????? | | ^# " #??????????? ??# #?????????? | | #""" #??????????## ??# #?????????? | | #""" #???????????# ??# #?????????? | | ## #""" #???????????###+#??# #?????????? | | ?# # "" #??????????????????# #?????????? | | ?# #""" #??????????????????# ##########? | | ?# #"" #??????????????????# # #? | | ?# #"" #??????????????????# # """ #? | | ?# # " #??????????????????# # """ #? | | ?# # #??????????????????# # """ #? | | ?# #####+#??????????????????# / #? | | ?# #???# #??????????????????# # """ #? | | ?# #???# #?????????########?# # """ #? | | ?# #???# #?????????# #?# # """ #? | +----------------------------------------------------+ Best States ------------- Heat Dissipation 25 Energy Generation 10 Energy Capacity 125 Matter Stores 300 Matter Capacity 300 Sight Range 16 Terrain Scan Density 10 Evasion (%) 44 Recoil Reduction 2 Item Schematics ----------------- None Robot Schematics ------------------ None Fabricated ------------ Nothing Alien Tech Used ----------------- None Achievements -------------- None Challenges ------------ None Game ------ Seed MassCompactAmplifier Manual? 0 Play Time 00:13:52 Cumulative 121.1 hours Start 2021.06.16 @ 17:25:02 End 2021.06.16 @ 17:35:13 Sessions 1 Manual Loads 0 Difficulty Rogue Special Mode None Game No. 36 Rogue 19 Adventurer 17 Explorer 0 Win Type - Total 6 Types 5/0/0/1/0/0/0/0/0 Lore% 63 Gallery% 63 Achievement% 56 Wizard Run 0 Options --------- ASCII 0 Keyboard 0 Movement Arrows Keybinds 0 Fullscreen 1 Font 28/Dina Map View 72x54 Tactical HUD 1 Map Filters NONE Filters NONE Steam 1 RUN: 877e5140-cc95-4747-94f5-4c4ace97c090